[Event "19th IPCA WCC 2019"]
[Site "Ruzomberok"]
[Date "2019.06.28"]
[Round "1.21"]
[White "Zavarsky, Juraj"]
[Black "Kostova, Erika"]
[Result "1-0"]
[ECO "C10"]
[WhiteElo "2000"]
[BlackElo "1210"]
[Annotator "NA"]
[PlyCount "71"]
[EventDate "2019.06.28"]
[EventType "swiss"]
[EventCountry "SVK"]
[SourceTitle "playchess.com"]
[Source "ChessBase"]
[SourceQuality "1"]
[TimeControl "5400+30"]

1. e4 {[%emt 0:00:00]} e6 {[%emt 0:00:00]} 2. d4 {[%emt 0:00:00]} d5 {[%emt 0:00:00]} 3. Nc3 {[%emt 0:00:07]} c5 {[%emt 0:00:32]} 4. exd5 exd5 {[%emt 0:00:24]} 5. Nf3 {[%emt 0:01:57]} Nf6 {[%emt 0:01:10]} 6. Bb5+ {[%emt 0:01:08]} Bd7 {[%emt 0:00:44]} 7. O-O {[%emt 0:00:51]} Be7 {[%emt 0:00:50]} 8. dxc5 {[%emt 0:01:08]} Bxb5 {[%emt 0:01:05]} 9. Nxb5 {[%emt 0:00:11]} Qa5 {[%emt 0:01:19]} 10. Qe2 {[%emt 0:01:09]} Ne4 {[%emt 0:01:09]} 11. Nd2 {[%emt 0:06:14]} Nxc5 12. b4 Qb6 {[%emt 0:10:32]} 13. bxc5 {[%emt 0:01:33]} Qxc5 {[%emt 0:00:30]} 14. Ba3 {[%emt 0:00:16]} Qxa3 {[%emt 0:01:52]} 15. Nxa3 {[%emt 0:00:08]} Nc6 {[%emt 0:00:22]} 16. Nf3 {[%emt 0:01:01]} O-O {[%emt 0:01:54]} 17. Nb5 {[%emt 0:00:10]} Bd8 {[%emt 0:00:24]} 18. Nbd4 {[%emt 0:00:27]} g6 {[%emt 0:01:22]} 19. Nxc6 {[%emt 0:00:14]} bxc6 {[%emt 0:00:19]} 20. c4 {[%emt 0:00:17]} Bf6 {[%emt 0:00:47]} 21. Rab1 {[%emt 0:00:15]} Rfe8 {[%emt 0:00:21]} 22. Qd3 {[%emt 0:00:23]} Rad8 {[%emt 0:00:23]} 23. Rfe1 {[%emt 0:00:11]} Re4 {[%emt 0:02:53]} 24. Rxe4 {[%emt 0:03:36]} dxe4 {[%emt 0:00:54]} 25. Qxd8+ {[%emt 0:00:03]} Bxd8 {[%emt 0:00:00]} 26. Rb8 {[%emt 0:00:09]} exf3 {[%emt 0:00:17]} 27. Rxd8+ {[%emt 0:00:13]} Kg7 {[%emt 0:00:23]} 28. Rc8 {[%emt 0:00:08]} fxg2 {[%emt 0:00:29]} 29. Rxc6 {[%emt 0:00:03]} Kf8 {[%emt 0:00:28]} 30. Ra6 {[%emt 0:00:10]} Ke8 {[%emt 0:00:17]} 31. Rxa7 {[%emt 0:00:06]} h5 {[%emt 0:00:33]} 32. c5 {[%emt 0:00:10]} f6 {[%emt 0:00:14]} 33. c6 {[%emt 0:00:07]} Kd8 {[%emt 0:00:13]} 34. Rb7 {[%emt 0:00:13]} h4 {[%emt 0:00:30]} 35. a4 {[%emt 0:00:08]} h3 {[%emt 0:00:16]} 36. a5 {[%emt 0:00:07]} 1-0

[Event "19th IPCA WCC 2019"]
[Site "Ruzomberok"]
[Date "2019.06.29"]
[Round "2.1"]
[White "Wielecki, Zygmunt"]
[Black "Gurbanov, Andrei"]
[Result "0-1"]
[ECO "C70"]
[WhiteElo "2145"]
[BlackElo "2300"]
[Annotator "NA"]
[PlyCount "58"]
[EventDate "2019.06.28"]
[EventType "swiss"]
[EventCountry "SVK"]
[SourceTitle "playchess.com"]
[Source "ChessBase"]
[SourceQuality "1"]
[TimeControl "5400+30"]

1. e4 {[%emt 0:00:00]} e5 {[%emt 0:00:00]} 2. Nf3 {[%emt 0:00:00]} Nc6 {[%emt 0:00:00]} 3. Bb5 {[%emt 0:00:12]} a6 {[%emt 0:00:19]} 4. Ba4 {[%emt 0:00:12]} g6 {[%emt 0:01:16]} 5. O-O {[%emt 0:07:09]} Bg7 {[%emt 0:01:29]} 6. c3 {[%emt 0:01:17]} Nge7 {[%emt 0:00:06]} 7. d4 {[%emt 0:07:26]} exd4 {[%emt 0:00:15]} 8. cxd4 {[%emt 0:16:59]} b5 {[%emt 0:00:25]} 9. Bb3 {[%emt 0:00:51]} Na5 {[%emt 0:00:26]} 10. Bc2 {[%emt 0:01:52]} O-O {[%emt 0:00:39]} 11. Qe1 {[%emt 0:23:38]} Nc4 {[%emt 0:01:28]} 12. a4 {[%emt 0:04:00]} bxa4 {[%emt 0:03:05]} 13. Rxa4 {[%emt 0:02:54]} Nb6 {[%emt 0:00:58]} 14. Ra1 {[%emt 0:02:29]} d6 {[%emt 0:00:10]} 15. h3 {[%emt 0:01:22]} Re8 {[%emt 0:00:43]} 16. Qd1 {[%emt 0:03:20]} Bb7 {[%emt 0:01:19]} 17. Re1 {[%emt 0:01:11]} Nc6 18. Nc3 {[%emt 0:01:17]} h6 {[%emt 0:03:08]} 19. Bb3 {[%emt 0:00:30]} a5 {[%emt 0:03:05]} 20. Nd5 {[%emt 0:05:06]} Nb4 {[%emt 0:00:31]} 21. Nxb4 {[%emt 0:06:35]} axb4 {[%emt 0:00:06]} 22. Rxa8 {[%emt 0:00:22]} Qxa8 {[%emt 0:00:52]} 23. d5 {[%emt 0:00:05]} Re7 {[%emt 0:02:15]} 24. Qc2 {[%emt 0:00:40]} c5 {[%emt 0:02:20]} 25. Bf4 {[%emt 0:05:43]} Qd8 {[%emt 0:02:40]} 26. e5 {[%emt 0:01:12]} Bxd5 {[%emt 0:10:00]} 27. Bxd5 {[%emt 0:04:05]} Nxd5 {[%emt 0:00:03]} 28. Bg3 {[%emt 0:00:40]} dxe5 {[%emt 0:02:33]} 29. Qxc5 {[%emt 0:00:07]} f6 {[%emt 0:09:01]} 0-1

[Event "19th IPCA WCC 2019"]
[Site "Ruzomberok"]
[Date "2019.06.29"]
[Round "2.2"]
[White "Glazar, Domagoj"]
[Black "Yarmonov, Igor"]
[Result "0-1"]
[ECO "D20"]
[WhiteElo "2153"]
[BlackElo "2389"]
[Annotator "RC"]
[PlyCount "135"]
[EventDate "2019.06.28"]
[EventType "swiss"]
[EventCountry "SVK"]
[SourceTitle "playchess.com"]
[Source "ChessBase"]
[SourceQuality "1"]
[TimeControl "5400+30"]

1. d4 {[%emt 0:00:00]} d5 {[%emt 0:00:00]} 2. c4 {[%emt 0:00:28]} dxc4 {[%emt 0:00:00]} 3. Qa4+ {[%emt 0:01:14]} c6 {[%emt 0:10:19]} 4. Qxc4 {[%emt 0:02:08]} Nf6 {[%emt 0:00:29]} 5. Nf3 {[%emt 0:01:45]} e6 {[%emt 0:01:34]} 6. e3 {[%emt 0:02:22]} Be7 {[%emt 0:00:37]} 7. Be2 {[%emt 0:00:47]} O-O {[%emt 0:00:09]} 8. O-O {[%emt 0:00:08]} Na6 {[%emt 0:07:38]} 9. Rd1 {[%emt 0:04:51]} Qc7 {[%emt 0:08:25]} 10. a3 {[%emt 0:03:45]} c5 {[%emt 0:07:20]} 11. dxc5 {[%emt 0:00:27]} Nxc5 {[%emt 0:01:27]} 12. b4 {[%emt 0:01:32]} Na6 {[%emt 0:00:02]} 13. Bb2 {[%emt 0:00:48]} Qxc4 {[%emt 0:00:07]} 14. Bxc4 {[%emt 0:00:12]} b6 {[%emt 0:12:27]} 15. Nc3 {[%emt 0:03:15]} Nc7 {[%emt 0:00:41]} 16. Rac1 {[%emt 0:03:54]} Bb7 {[%emt 0:00:12]} 17. Nb5 {[%emt 0:03:06]} Nxb5 {[%emt 0:04:31]} 18. Bxb5 {[%emt 0:00:19]} Rfd8 {[%emt 0:00:21]} 19. Nd4 {[%emt 0:04:38]} Rac8 {[%emt 0:02:49]} 20. Rxc8 {[%emt 0:07:38]} Rxc8 {[%emt 0:01:11]} 21. Rc1 {[%emt 0:00:52]} Rxc1+ {[%emt 0:01:29]} 22. Bxc1 {[%emt 0:00:08]} a6 {[%emt 0:00:44]} 23. Bd3 {[%emt 0:01:49]} g6 {[%emt 0:07:41]} 24. f3 {[%emt 0:02:09]} e5 {[%emt 0:00:10]} 25. Nc2 {[%emt 0:01:39]} e4 {[%emt 0:00:51]} 26. Be2 {[%emt 0:00:35]} b5 {[%emt 0:02:44]} 27. Bb2 {[%emt 0:01:11]} Nd7 {[%emt 0:01:02]} 28. Bd4 {[%emt 0:01:24]} f5 {[%emt 0:00:11]} 29. Na1 {[%emt 0:03:02]} Bd5 {[%emt 0:01:56]} 30. fxe4 {[%emt 0:02:50]} Bxe4 {[%emt 0:00:06]} 31. Bf3 {[%emt 0:02:05]} Bxf3 {[%emt 0:01:46]} 32. gxf3 {[%emt 0:00:06]} Kf7 {[%emt 0:00:33]} 33. Kf2 {[%emt 0:01:25]} Ke6 {[%emt 0:00:06]} 34. Ke2 {[%emt 0:00:45]} g5 {[%emt 0:01:03]} 35. Nb3 {[%emt 0:01:11]} h5 {[%emt 0:05:11]} 36. Bc3 {[%emt 0:06:26]} Bd6 {[%emt 0:01:44]} 37. h3 {[%emt 0:05:14]} Kd5 {[%emt 0:02:39]} 38. Nd2 {[%emt 0:04:27]} Be5 {[%emt 0:05:25]} 39. e4+ {[%emt 0:02:25]} fxe4 {[%emt 0:00:20]} 40. Nxe4 {[%emt 0:00:43]} Bxc3 {[%emt 0:02:57]} 41. Nxc3+ {[%emt 0:00:10]} Kd4 {[%emt 0:00:28]} 42. Kd2 {[%emt 0:03:50]} Nb6 {[%emt 0:00:24]} 43. Ne2+ {[%emt 0:00:41]} Ke5 {[%emt 0:00:46]} 44. Kc3 {[%emt 0:01:55]} Nd5+ {[%emt 0:00:25]} 45. Kd2 {[%emt 0:03:55]} Nf4 {[%emt 0:00:36]} 46. Ng3 {[%emt 0:01:09]} h4 {[%emt 0:03:33]} 47. Ne4 {[%emt 0:00:28]} Nxh3 {[%emt 0:00:15]} 48. Ke3 {[%emt 0:00:33]} Kd5 {[%emt 0:00:37]} 49. Nd2 {[%emt 0:07:38]} Nf4 {[%emt 0:00:31]} 50. Kf2 {[%emt 0:01:06]} Kd4 {[%emt 0:01:18]} 51. Nb3+ {[%emt 0:00:38]} Kc4 {[%emt 0:00:53]} 52. Nd2+ {[%emt 0:01:41]} Kc3 {[%emt 0:00:57]} 53. Ne4+ {[%emt 0:00:57]} Kb3 {[%emt 0:00:15]} 54. Nc5+ {[%emt 0:00:47]} Kxa3 {[%emt 0:00:05]} 55. Nxa6 {[%emt 0:00:21]} Kb3 {[%emt 0:00:29]} 56. Kg1 {[%emt 0:00:56]} Kc4 {[%emt 0:00:26]} 57. Kh2 {[%emt 0:00:26]} Nd3 {[%emt 0:00:34]} 58. Nc7 {[%emt 0:00:44]} Ne1 {[%emt 0:02:15]} 59. Kh3 {[%emt 0:03:11]} Nxf3 {[%emt 0:00:34]} 60. Ne6 {[%emt 0:01:02]} Kxb4 {[%emt 0:00:50]} 61. Kg4 {[%emt 0:03:15]} Ne5+ {[%emt 0:00:48]} 62. Kh3 {[%emt 0:00:45]} Nf7 {[%emt 0:00:27]} 63. Kg4 {[%emt 0:00:33]} Kc4 {[%emt 0:00:33]} 64. Ng7 {[%emt 0:00:48]} b4 {[%emt 0:00:30]} 65. Nf5 {[%emt 0:00:08]} Kd3 {[%emt 0:01:00]} 66. Ne7 {[%emt 0:01:05]} b3 {[%emt 0:00:30]} 67. Nc6 {[%emt 0:00:22]} b2 {[%emt 0:00:30]} 68. Nb4+ {[%emt 0:00:07]} 0-1

[Event "19th IPCA WCC 2019"]
[Site "Ruzomberok"]
[Date "2019.06.29"]
[Round "2.3"]
[White "Obodchuk, Andrei"]
[Black "Valenta, Vit"]
[Result "1/2-1/2"]
[ECO "E81"]
[WhiteElo "2316"]
[BlackElo "2147"]
[Annotator "NA"]
[PlyCount "116"]
[EventDate "2019.06.28"]
[EventType "swiss"]
[EventCountry "SVK"]
[SourceTitle "playchess.com"]
[Source "ChessBase"]
[SourceQuality "1"]
[TimeControl "5400+30"]

1. d4 {[%emt 0:00:00]} Nf6 {[%emt 0:00:00]} 2. c4 {[%emt 0:00:00]} g6 {[%emt 0:00:00]} 3. Nc3 {[%emt 0:00:00]} Bg7 {[%emt 0:00:00]} 4. e4 {[%emt 0:00:00]} d6 {[%emt 0:00:02]} 5. f3 {[%emt 0:00:08]} O-O {[%emt 0:00:21]} 6. Be3 {[%emt 0:00:07]} c6 {[%emt 0:00:24]} 7. Bd3 {[%emt 0:00:40]} e5 {[%emt 0:00:15]} 8. d5 {[%emt 0:00:14]} Nbd7 {[%emt 0:03:27]} 9. Nge2 {[%emt 0:00:30]} Nc5 {[%emt 0:01:52]} 10. Bc2 {[%emt 0:00:18]} cxd5 {[%emt 0:00:47]} 11. cxd5 {[%emt 0:00:14]} b6 {[%emt 0:00:32]} 12. b4 {[%emt 0:00:32]} Nb7 {[%emt 0:00:32]} 13. O-O {[%emt 0:00:42]} Nh5 {[%emt 0:00:12]} 14. Qd2 {[%emt 0:01:35]} f5 {[%emt 0:02:06]} 15. exf5 {[%emt 0:00:12]} gxf5 {[%emt 0:00:32]} 16. f4 {[%emt 0:06:30]} Bd7 {[%emt 0:06:43]} 17. fxe5 {[%emt 0:06:15]} dxe5 {[%emt 0:02:17]} 18. g4 {[%emt 0:00:15]} f4 {[%emt 0:08:07]} 19. gxh5 {[%emt 0:03:12]} Qg5+ {[%emt 0:02:54]} 20. Ng3 {[%emt 0:00:12]} fxe3 {[%emt 0:06:49]} 21. Qd3 {[%emt 0:00:13]} Qh6 {[%emt 0:00:32]} 22. Nce4 {[%emt 0:02:05]} Rxf1+ {[%emt 0:15:38]} 23. Rxf1 {[%emt 0:00:15]} Rf8 {[%emt 0:00:17]} 24. Re1 {[%emt 0:02:53]} Kh8 {[%emt 0:09:22]} 25. Qxe3 {[%emt 0:07:11]} Qxe3+ {[%emt 0:02:03]} 26. Rxe3 {[%emt 0:00:02]} Rc8 {[%emt 0:01:57]} 27. Rc3 {[%emt 0:04:54]} Rxc3 {[%emt 0:01:36]} 28. Nxc3 {[%emt 0:00:02]} Bf8 {[%emt 0:00:48]} 29. a3 {[%emt 0:03:25]} a5 {[%emt 0:00:53]} 30. bxa5 {[%emt 0:00:30]} Nxa5 {[%emt 0:02:51]} 31. a4 {[%emt 0:00:12]} Nc4 {[%emt 0:01:08]} 32. Nge4 {[%emt 0:01:28]} Kg7 {[%emt 0:01:17]} 33. Bd3 {[%emt 0:00:36]} Nd6 {[%emt 0:06:21]} 34. Ng3 {[%emt 0:02:40]} Be7 {[%emt 0:03:49]} 35. Kf2 {[%emt 0:02:01]} h6 {[%emt 0:00:23]} 36. Bb5 {[%emt 0:06:39]} Nxb5 {[%emt 0:01:45]} 37. Nxb5 {[%emt 0:00:11]} Bc5+ {[%emt 0:01:28]} 38. Kf3 {[%emt 0:00:23]} Be8 {[%emt 0:03:03]} 39. Nc3 {[%emt 0:17:43]} Bd4 {[%emt 0:01:44]} 40. Nb5 {[%emt 0:00:33]} Bc5 {[%emt 0:01:02]} 41. Ke4 {[%emt 0:02:01]} Kf6 {[%emt 0:00:29]} 42. Kd3 {[%emt 0:01:42]} Bg1 {[%emt 0:02:12]} 43. Ne4+ {[%emt 0:00:49]} Ke7 {[%emt 0:01:23]} 44. d6+ {[%emt 0:00:47]} Kd8 {[%emt 0:01:04]} 45. Nf6 {[%emt 0:00:43]} Bc6 {[%emt 0:03:31]} 46. h3 {[%emt 0:04:25]} Bh2 {[%emt 0:02:05]} 47. Kc4 {[%emt 0:06:54]} Bf4 {[%emt 0:01:06]} 48. Nc3 {[%emt 0:09:31]} Bg5 {[%emt 0:01:30]} 49. Ng4 {[%emt 0:00:39]} Bf4 {[%emt 0:00:39]} 50. Nd5 {[%emt 0:01:05]} Bxa4 {[%emt 0:00:41]} 51. Nxb6 {[%emt 0:00:45]} Be8 {[%emt 0:00:25]} 52. Kd5 {[%emt 0:01:00]} e4 {[%emt 0:00:44]} 53. d7 {[%emt 0:04:02]} Bxd7 {[%emt 0:01:26]} 54. Nxd7 {[%emt 0:00:07]} Kxd7 {[%emt 0:00:01]} 55. Kxe4 {[%emt 0:00:14]} Bc1 {[%emt 0:00:10]} 56. Kf5 {[%emt 0:00:02]} Ke7 {[%emt 0:00:09]} 57. Kg6 {[%emt 0:00:09]} Kf8 {[%emt 0:00:18]} 58. Kh7 {[%emt 0:00:21]} Bf4 {[%emt 0:01:11]} 1/2-1/2

[Event "19th IPCA WCC 2019"]
[Site "Ruzomberok"]
[Date "2019.06.29"]
[Round "2.4"]
[White "Nowak, Lukasz"]
[Black "Lipilin, Ilia"]
[Result "1-0"]
[ECO "D20"]
[WhiteElo "2267"]
[BlackElo "2084"]
[Annotator "NA"]
[PlyCount "69"]
[EventDate "2019.06.28"]
[EventType "swiss"]
[EventCountry "SVK"]
[SourceTitle "playchess.com"]
[Source "ChessBase"]
[SourceQuality "1"]
[TimeControl "5400+30"]

1. d4 {[%emt 0:00:00]} d5 {[%emt 0:00:00]} 2. c4 {[%emt 0:00:00]} dxc4 {[%emt 0:00:00]} 3. e4 {[%emt 0:00:14]} Nc6 {[%emt 0:00:00]} 4. Nf3 {[%emt 0:01:56]} Bg4 {[%emt 0:00:08]} 5. d5 {[%emt 0:00:36]} Ne5 {[%emt 0:00:18]} 6. Bf4 {[%emt 0:00:30]} Ng6 {[%emt 0:00:24]} 7. Be3 {[%emt 0:00:17]} e6 {[%emt 0:00:43]} 8. Qa4+ {[%emt 0:17:38]} Qd7 {[%emt 0:02:52]} 9. Qxd7+ {[%emt 0:00:28]} Kxd7 {[%emt 0:00:09]} 10. Bxc4 {[%emt 0:00:53]} Bb4+ {[%emt 0:09:41]} 11. Nc3 {[%emt 0:03:47]} Bxf3 {[%emt 0:04:15]} 12. gxf3 {[%emt 0:00:24]} e5 {[%emt 0:00:17]} 13. O-O-O {[%emt 0:07:09]} Nf6 14. h4 {[%emt 0:05:32]} Nh5 {[%emt 0:06:55]} 15. Ne2 {[%emt 0:07:52]} a6 {[%emt 0:03:56]} 16. Rdg1 {[%emt 0:01:46]} Be7 {[%emt 0:02:30]} 17. Ng3 {[%emt 0:00:50]} Ngf4 {[%emt 0:00:54]} 18. Bf1 {[%emt 0:07:55]} g6 {[%emt 0:05:55]} 19. Kb1 {[%emt 0:03:40]} Bb4 {[%emt 0:05:28]} 20. Bh3+ {[%emt 0:01:23]} Ke7 {[%emt 0:01:14]} 21. Bg4 {[%emt 0:01:07]} Nf6 {[%emt 0:00:37]} 22. Bxf4 {[%emt 0:03:34]} exf4 {[%emt 0:00:11]} 23. Ne2 {[%emt 0:00:16]} Bd6 {[%emt 0:00:16]} 24. Nc1 {[%emt 0:01:26]} Be5 {[%emt 0:03:00]} 25. Nd3 {[%emt 0:00:15]} Kd6 {[%emt 0:00:04]} 26. Rc1 {[%emt 0:01:01]} Ne8 {[%emt 0:02:19]} 27. h5 {[%emt 0:02:28]} g5 {[%emt 0:01:43]} 28. h6 {[%emt 0:00:28]} Bd4 {[%emt 0:03:49]} 29. Rhd1 {[%emt 0:02:30]} Rd8 {[%emt 0:07:29]} 30. Rc2 {[%emt 0:04:33]} Be5 {[%emt 0:03:16]} 31. Nc5 {[%emt 0:03:40]} Rb8 {[%emt 0:00:16]} 32. Rd3 {[%emt 0:00:45]} a5 {[%emt 0:03:10]} 33. Rb3 {[%emt 0:00:31]} b6 {[%emt 0:00:33]} 34. Nd7 {[%emt 0:00:36]} a4 {[%emt 0:02:57]} 35. Rd3 {[%emt 0:03:51]} 1-0

[Event "19th IPCA WCC 2019"]
[Site "Ruzomberok"]
[Date "2019.06.29"]
[Round "2.5"]
[White "Tebenkov, Vladislav"]
[Black "Babula, Milan"]
[Result "1/2-1/2"]
[ECO "C03"]
[WhiteElo "2096"]
[BlackElo "2220"]
[Annotator "NA"]
[PlyCount "71"]
[EventDate "2019.06.28"]
[EventType "swiss"]
[EventCountry "SVK"]
[SourceTitle "playchess.com"]
[Source "ChessBase"]
[SourceQuality "1"]
[TimeControl "5400+30"]

1. e4 {[%emt 0:00:00]} e6 {[%emt 0:00:00]} 2. d4 {[%emt 0:00:00]} d5 {[%emt 0:00:00]} 3. Nd2 {[%emt 0:00:00]} a6 {[%emt 0:00:00]} 4. Ngf3 {[%emt 0:01:40]} c5 {[%emt 0:01:17]} 5. exd5 {[%emt 0:04:37]} exd5 {[%emt 0:04:22]} 6. dxc5 {[%emt 0:05:04]} Bxc5 {[%emt 0:00:05]} 7. Nb3 {[%emt 0:00:10]} Bb6 {[%emt 0:02:06]} 8. Bg5 {[%emt 0:04:00]} Ne7 {[%emt 0:07:12]} 9. Bd3 {[%emt 0:09:57]} Nbc6 {[%emt 0:01:01]} 10. O-O {[%emt 0:01:59]} Qd6 {[%emt 0:08:07]} 11. Re1 {[%emt 0:02:25]} O-O {[%emt 0:03:17]} 12. c3 {[%emt 0:11:17]} Ng6 {[%emt 0:33:07]} 13. Nbd4 {[%emt 0:04:34]} Bg4 {[%emt 0:05:59]} 14. Qd2 {[%emt 0:11:03]} Bc7 {[%emt 0:04:08]} 15. Nf5 {[%emt 0:02:54]} Qd7 {[%emt 0:03:36]} 16. N3d4 {[%emt 0:01:39]} Nxd4 {[%emt 0:03:25]} 17. Nxd4 {[%emt 0:00:07]} Qd6 {[%emt 0:01:21]} 18. g3 {[%emt 0:01:02]} h6 {[%emt 0:04:03]} 19. Bxg6 {[%emt 0:06:35]} Qxg6 {[%emt 0:01:45]} 20. Bf4 {[%emt 0:00:10]} Bb6 {[%emt 0:02:22]} 21. Re7 {[%emt 0:03:22]} Rfe8 {[%emt 0:01:16]} 22. Rae1 {[%emt 0:03:14]} Rxe7 {[%emt 0:02:30]} 23. Rxe7 {[%emt 0:00:06]} Bxd4 {[%emt 0:01:54]} 24. cxd4 {[%emt 0:01:14]} Bf3 {[%emt 0:00:18]} 25. Qc3 {[%emt 0:02:26]} Qh5 {[%emt 0:03:03]} 26. Re3 {[%emt 0:04:31]} Bg4 {[%emt 0:02:08]} 27. Qe1 {[%emt 0:04:57]} Qg6 {[%emt 0:01:14]} 28. Rc3 {[%emt 0:00:56]} Qb6 {[%emt 0:01:24]} 29. Qd2 {[%emt 0:00:37]} Re8 {[%emt 0:00:41]} 30. f3 {[%emt 0:01:58]} Bf5 {[%emt 0:00:31]} 31. Re3 {[%emt 0:03:47]} Rxe3 {[%emt 0:00:19]} 32. Bxe3 {[%emt 0:00:04]} Qb5 {[%emt 0:00:16]} 33. Kf2 {[%emt 0:00:19]} Qc4 {[%emt 0:01:52]} 34. a3 {[%emt 0:01:16]} Qb3 {[%emt 0:01:06]} 35. Qc3 {[%emt 0:01:03]} Qd1 {[%emt 0:00:23]} 36. Qc1 {[%emt 0:00:10]} 1/2-1/2

[Event "19th IPCA WCC 2019"]
[Site "Ruzomberok"]
[Date "2019.06.29"]
[Round "2.6"]
[White "Palin, Denis"]
[Black "Sovetov, Oleksandr"]
[Result "1-0"]
[ECO "D04"]
[WhiteElo "2180"]
[BlackElo "2009"]
[Annotator "NA"]
[PlyCount "89"]
[EventDate "2019.06.28"]
[EventType "swiss"]
[EventCountry "SVK"]
[SourceTitle "playchess.com"]
[Source "ChessBase"]
[SourceQuality "1"]
[TimeControl "5400+30"]

1. d4 {[%emt 0:00:00]} d5 {[%emt 0:00:00]} 2. Nf3 {[%emt 0:00:00]} Nf6 {[%emt 0:00:00]} 3. e3 {[%emt 0:00:00]} Bf5 {[%emt 0:00:46]} 4. Bd3 {[%emt 0:00:00]} Bxd3 {[%emt 0:01:30]} 5. Qxd3 {[%emt 0:00:00]} c6 {[%emt 0:00:55]} 6. Nbd2 {[%emt 0:00:11]} Nbd7 {[%emt 0:03:19]} 7. O-O {[%emt 0:00:59]} e6 {[%emt 0:00:53]} 8. e4 {[%emt 0:00:10]} dxe4 {[%emt 0:03:42]} 9. Nxe4 {[%emt 0:01:22]} Nxe4 {[%emt 0:00:05]} 10. Qxe4 {[%emt 0:00:08]} Nf6 {[%emt 0:01:54]} 11. Qe2 {[%emt 0:00:07]} Bd6 {[%emt 0:06:12]} 12. Ne5 {[%emt 0:01:32]} Qc7 {[%emt 0:09:28]} 13. h3 {[%emt 0:02:29]} Nd7 {[%emt 0:08:32]} 14. Nc4 {[%emt 0:03:15]} h6 {[%emt 0:12:03]} 15. Qg4 {[%emt 0:02:41]} g5 {[%emt 0:10:56]} 16. f4 {[%emt 0:07:18]} Nf6 {[%emt 0:05:51]} 17. Qe2 {[%emt 0:07:58]} Bxf4 {[%emt 0:07:07]} 18. Bxf4 {[%emt 0:00:53]} gxf4 {[%emt 0:00:03]} 19. Ne5 {[%emt 0:01:27]} Nd7 {[%emt 0:03:47]} 20. Nd3 {[%emt 0:05:45]} O-O-O {[%emt 0:04:05]} 21. Rxf4 {[%emt 0:00:55]} Qd6 {[%emt 0:02:13]} 22. Rxf7 {[%emt 0:03:45]} Qxd4+ {[%emt 0:00:03]} 23. Qf2 {[%emt 0:00:08]} Qd6 {[%emt 0:09:57]} 24. Qxa7 {[%emt 0:08:24]} Rhg8 {[%emt 0:00:10]} 25. Qa8+ {[%emt 0:01:13]} Kc7 {[%emt 0:00:23]} 26. Qa5+ {[%emt 0:00:01]} Kc8 {[%emt 0:01:44]} 27. Kh1 {[%emt 0:02:30]} Rg5 {[%emt 0:02:16]} 28. Qe1 {[%emt 0:10:50]} Rdg8 {[%emt 0:01:12]} 29. Rf2 {[%emt 0:00:15]} e5 {[%emt 0:01:42]} 30. Rd1 {[%emt 0:09:37]} Qg6 {[%emt 0:02:06]} 31. Qf1 {[%emt 0:00:09]} Qh5 {[%emt 0:01:52]} 32. Re1 {[%emt 0:02:06]} Nf6 {[%emt 0:00:41]} 33. Rxf6 {[%emt 0:00:38]} Rxg2 {[%emt 0:00:05]} 34. Rf8+ {[%emt 0:00:06]} Kc7 35. Qf7+ Qxf7 {[%emt 0:01:08]} 36. Rxf7+ {[%emt 0:00:09]} Kb6 {[%emt 0:00:03]} 37. Rf2 {[%emt 0:00:17]} R2g5 {[%emt 0:01:11]} 38. Nxe5 {[%emt 0:00:19]} Rh5 {[%emt 0:00:35]} 39. Kh2 {[%emt 0:00:14]} Kb5 {[%emt 0:00:16]} 40. Nd7 {[%emt 0:00:21]} Rh4 {[%emt 0:00:35]} 41. Re5+ {[%emt 0:00:27]} Ka6 {[%emt 0:00:17]} 42. Re4 {[%emt 0:01:04]} Rxe4 {[%emt 0:00:24]} 43. Nc5+ {[%emt 0:00:01]} Kb6 {[%emt 0:00:31]} 44. Nxe4 {[%emt 0:00:06]} Re8 {[%emt 0:00:02]} 45. Nf6 {[%emt 0:00:20]} 1-0

[Event "19th IPCA WCC 2019"]
[Site "Ruzomberok"]
[Date "2019.06.29"]
[Round "2.7"]
[White "Kovacevic, Krsto"]
[Black "Shashikant, Kutwal"]
[Result "1/2-1/2"]
[ECO "B31"]
[WhiteElo "2049"]
[BlackElo "2176"]
[Annotator "NA"]
[PlyCount "76"]
[EventDate "2019.06.28"]
[EventType "swiss"]
[EventCountry "SVK"]
[SourceTitle "playchess.com"]
[Source "ChessBase"]
[SourceQuality "1"]
[TimeControl "5400+30"]

1. e4 {[%emt 0:00:00]} c5 {[%emt 0:00:02]} 2. Nf3 {[%emt 0:00:00]} Nc6 {[%emt 0:00:47]} 3. Bb5 {[%emt 0:00:10]} g6 {[%emt 0:00:54]} 4. Bxc6 {[%emt 0:00:17]} bxc6 {[%emt 0:00:42]} 5. O-O {[%emt 0:00:18]} Bg7 {[%emt 0:00:15]} 6. Re1 {[%emt 0:00:24]} Nh6 {[%emt 0:01:25]} 7. d3 {[%emt 0:01:25]} O-O {[%emt 0:02:48]} 8. Nc3 {[%emt 0:01:55]} Rb8 {[%emt 0:07:08]} 9. h3 {[%emt 0:08:45]} f5 {[%emt 0:03:13]} 10. e5 {[%emt 0:01:38]} Nf7 {[%emt 0:01:19]} 11. Na4 {[%emt 0:16:47]} d6 {[%emt 0:11:06]} 12. e6 {[%emt 0:00:37]} Nh8 {[%emt 0:09:09]} 13. Re2 {[%emt 0:05:05]} h6 {[%emt 0:08:49]} 14. h4 {[%emt 0:00:19]} Qa5 {[%emt 0:02:23]} 15. b3 {[%emt 0:02:54]} Qd8 {[%emt 0:21:18]} 16. Rb1 {[%emt 0:04:38]} Kh7 {[%emt 0:01:34]} 17. Qe1 {[%emt 0:04:05]} Qe8 {[%emt 0:06:12]} 18. c4 {[%emt 0:07:10]} Rf6 {[%emt 0:05:09]} 19. Bb2 {[%emt 0:00:34]} Rf8 {[%emt 0:00:12]} 20. Bxg7 {[%emt 0:06:18]} Kxg7 {[%emt 0:00:06]} 21. Qc3+ {[%emt 0:00:11]} Kh7 {[%emt 0:01:24]} 22. Rbe1 {[%emt 0:00:35]} Rf6 {[%emt 0:01:39]} 23. Re3 {[%emt 0:10:53]} Qg8 {[%emt 0:07:07]} 24. Ng5+ {[%emt 0:04:27]} Kg7 {[%emt 0:04:16]} 25. f4 {[%emt 0:00:14]} Kf8 {[%emt 0:00:41]} 26. Nf3 {[%emt 0:00:20]} Rb7 {[%emt 0:01:14]} 27. R1e2 {[%emt 0:05:50]} Qg7 {[%emt 0:00:37]} 28. Kf2 {[%emt 0:02:28]} Kg8 {[%emt 0:00:19]} 29. Ke1 {[%emt 0:03:49]} Rf8 {[%emt 0:00:33]} 30. Qxg7+ {[%emt 0:01:14]} Kxg7 {[%emt 0:00:05]} 31. g3 {[%emt 0:00:04]} Kf6 {[%emt 0:00:35]} 32. Kd2 {[%emt 0:01:17]} Rg8 {[%emt 0:00:25]} 33. Re1 {[%emt 0:02:54]} Rd8 {[%emt 0:00:18]} 34. Kc2 {[%emt 0:00:17]} Rg8 {[%emt 0:00:12]} 35. R3e2 {[%emt 0:04:15]} Rb8 {[%emt 0:01:20]} 36. Nc3 {[%emt 0:00:55]} Rb7 {[%emt 0:00:49]} 37. Na4 {[%emt 0:02:04]} Rc7 {[%emt 0:00:14]} 38. Re3 {[%emt 0:01:02]} Rb7 {[%emt 0:00:10]} 1/2-1/2